bitfinex-derivatives/quotes_SOLF0:USTF0_20250131
["timestamp","ask_amount","ask_price","bid_price","bid_amount"]
[1738291138975,7.35671388,237.14,237.06,51.09709591]
[1738291138976,7.35671388,237.14,237.07,7.35671388]
[1738291139176,7.35671388,237.14,237.1,4.2174]
[1738291140383,7.35671388,237.14,237.07,7.35671388]
[1738291140384,7.35671388,237.14,237.11,4.2171]
[1738291141978,7.35671388,237.14,237.09,4.2174]
[1738291142580,7.35671388,237.14,237.06,51.09709591]
[1738291142881,7.35671388,237.14,237.1,4.2173]
[1738291143583,7.35671388,237.14,237.06,51.09709591]
[1738291143882,7.35671388,237.14,237.13,4.2168]
[1738291144179,0.03138351,237.15,237.07,7.35671388]
[1738291144383,0.03138351,237.15,237.11,7.35671388]
[1738291144784,0.03138351,237.15,237.14,4.2167]
[1738291158898,0.03138351,237.15,237.12,4.2168]
[1738291159398,0.03138351,237.15,237.1,4.2172]
[1738291159796,0.03138351,237.15,237.07,16.91633299]
[1738291159996,7.35671388,237.14,237.09,4.2175]
[1738291160198,7.35671388,237.14,237.07,16.91633299]
[1738291160593,7.35671388,237.12,237.07,9.55961911]
[1738291161394,7.35671388,237.12,237.06,51.09709591]
[1738291163197,7.35671388,237.12,237.08,4.2177]
[1738291164096,7.35671388,237.12,237.06,51.09709591]
[1738291164294,7.35671388,237.12,237.09,4.2175]
[1738291164492,7.35671388,237.12,237.06,51.09709591]
[1738291165403,7.35671388,237.12,237.08,4.2175]
[1738291165699,7.35671388,237.12,237.06,51.09709591]
[1738291166500,7.35671388,237.12,237.09,4.2175]
[1738291166998,14.37991388,237.14,237.09,4.2175]
[1738291167399,10.16321388,237.14,237.06,51.09709591]
[1738291167594,2.8065,237.14,237.07,7.35671388]
[1738291167795,2.8065,237.14,237.09,7.35671388]
[1738291167997,2.8065,237.14,237.08,4.2177]
[1738291168197,2.8065,237.14,237.07,7.35671388]
[1738291169802,2.8065,237.14,237.12,4.217]
[1738291170805,0.03138351,237.15,237.14,4.2167]
[1738291173301,7.38809739,237.15,237.07,16.96000057]
[1738291173501,4.2167,237.14,237.07,16.96000057]
[1738291173704,7.38809739,237.15,237.07,7.35671388]
[1738291174001,0.03138351,237.15,237.09,7.35671388]
[1738291174304,0.03138351,237.15,237.11,7.35671388]
[1738291174499,0.03138351,237.15,237.14,4.2167]
[1738291179212,7.38809739,237.15,237.07,7.35671388]
[1738291179404,7.35671388,237.13,237.05,7.35671388]
[1738291179605,7.35671388,237.11,237.03,28.04206463]
[1738291180110,0.02670633,237.09,237.03,28.04206463]
[1738291180304,0.02670633,237.09,237.03,9.60328669]
[1738291180510,7.38342021,237.09,237.03,9.60328669]
[1738291181304,7.35671388,237.07,237.03,9.60328669]
[1738291181512,7.35671388,237.04,237.03,9.60328669]
[1738291182012,7.35671388,237.04,236.97,141.02616709]
[1738291182413,0.0310608,237.03,236.98,4.2194]
[1738291182615,0.0310608,237.03,236.97,141.02616709]
[1738291183911,7.35671388,237.02,236.99,4.2192]
[1738291184214,7.35671388,237.02,236.97,141.02616709]
[1738291184606,7.35671388,237.02,236.94,7.35671388]
[1738291184805,7.35671388,237.02,237.0,4.2191]
[1738291185007,0.0310608,237.03,237.0,7.35671388]
[1738291185316,0.0310608,237.03,237.02,7.35671388]
[1738291185911,0.0310608,237.03,237.02,4.2188]
[1738291186116,0.0310608,237.03,236.98,7.35671388]
[1738291187009,0.0310608,237.03,237.01,4.2189]
[1738291189617,0.0310608,237.03,237.02,4.2188]
[1738291189818,0.0310608,237.03,236.98,7.35671388]
[1738291190013,0.0310608,237.03,236.96,7.35671388]
[1738291190822,0.0310608,237.03,236.99,4.2193]
[1738291191024,7.35671388,237.02,236.94,7.35671388]
[1738291191612,0.0310608,237.03,236.94,7.35671388]
[1738291192520,0.0310608,237.03,237.01,4.2189]
[1738291193020,0.0310608,237.03,236.96,7.35671388]
[1738291193221,0.0310608,237.03,236.99,4.2191]
[1738291194318,7.35671388,237.02,236.97,4.2196]
[1738291194724,7.35671388,237.0,236.92,7.35671388]
[1738291194920,7.35671388,237.0,236.95,4.22]
[1738291195115,0.03095643,236.98,236.94,7.35671388]
[1738291195425,0.03095643,236.98,236.96,4.2198]
[1738291196828,0.03095643,236.98,236.97,4.2197]
[1738291197625,0.03095643,236.98,236.95,4.2199]
[1738291197823,0.03095643,236.98,236.92,7.35671388]
[1738291198019,0.03095643,236.98,236.97,4.2197]
[1738291216240,7.38767031,236.98,236.94,4.2202]
[1738291216440,7.35671388,236.96,236.94,4.2202]
[1738291216631,7.35671388,236.96,236.88,7.35671388]
[1738291216833,7.35671388,236.96,236.92,4.2205]
[1738291217339,7.35671388,236.96,236.88,7.35671388]
[1738291218237,7.35671388,236.96,236.94,4.2202]
[1738291221639,0.03095643,236.98,236.97,4.2197]
[1738291222332,0.03095643,236.98,236.92,7.35671388]
[1738291222536,0.03095643,236.98,236.96,4.2197]
[1738291224044,0.03095643,236.98,236.92,7.35671388]
[1738291224242,0.03095643,236.98,236.97,4.2197]
[1738291226647,5.643e-05,236.98,236.97,4.2197]
[1738291227244,5.643e-05,236.98,236.89,9.58521787]
[1738291227245,2.6616,237.08,237.06,4.218]
[1738291227445,2.6616,237.08,237.01,7.35671388]
[1738291227643,7.35671388,237.04,236.95,7.35671388]
[1738291227846,7.35671388,237.02,236.93,7.35671388]
[1738291228044,7.35671388,237.0,236.93,7.35671388]
[1738291228245,7.38791697,237.0,236.95,0.02692472]
[1738291228744,7.38791697,237.0,236.97,4.2196]
[1738291229047,0.03120309,237.0,236.95,7.3836386]
[1738291230148,0.03120309,237.0,236.99,4.2193]
[1738291232552,0.03120309,237.0,236.96,4.2198]
[1738291232753,0.03120309,237.0,236.95,0.02692472]
[1738291233552,0.03120309,237.0,236.97,4.2196]
[1738291235049,0.03120309,237.0,236.95,0.02692472]
[1738291235855,0.03120309,237.0,236.98,4.2195]
[1738291237254,0.03120309,237.0,236.95,0.02692472]
[1738291237551,0.03120309,237.0,236.99,4.2193]
[1738291238155,0.03120309,237.0,236.95,0.02692472]
[1738291238357,0.03120309,237.0,236.98,4.2195]
[1738291238855,0.03120309,237.0,236.97,4.2197]
[1738291239857,0.03120309,237.0,236.95,0.02692472]
[1738291240052,7.38791697,237.0,236.96,4.2198]
[1738291241557,7.38791697,237.0,236.97,4.2195]
[1738291243960,7.38791697,237.0,236.95,0.02692472]
[1738291244159,11.60701697,237.0,236.96,4.2198]
[1738291244361,7.38791697,237.0,236.96,4.2198]
[1738291244861,7.38791697,237.0,236.95,0.02692472]
[1738291245260,11.60721697,237.0,236.95,0.02692472]
[1738291245458,2.7753,236.99,236.95,0.02692472]
[1738291245761,6.9946,236.99,236.95,0.02692472]
[1738291246863,2.7753,236.99,236.95,4.24692472]
[1738291247663,2.7753,236.99,236.96,4.2197]
[1738291247856,2.7753,236.99,236.95,0.02692472]
[1738291249960,2.7753,236.99,236.95,4.24692472]
[1738291250166,0.03120309,237.0,236.95,0.02692472]
[1738291250464,0.03120309,237.0,236.98,7.35671388]
[1738291250663,0.03120309,237.0,236.99,4.2193]
[1738291251068,3.09e-06,237.0,236.99,4.2193]
[1738291252966,3.09e-06,237.0,236.96,7.35671388]
[1738291253159,3.09e-06,237.0,236.98,4.2195]
[1738291253361,3.09e-06,237.0,236.96,7.35671388]
[1738291253559,3.09e-06,237.0,236.99,7.35671388]
[1738291253761,3.09e-06,237.0,236.99,11.57601388]
[1738291254663,3.09e-06,237.0,236.99,4.2193]
[1738291255069,3.09e-06,237.0,236.95,0.02692472]
[1738291256772,7.35671697,237.0,236.95,0.02692472]
[1738291257467,7.35671388,236.98,236.95,0.02692472]
[1738291257873,7.35671697,237.0,236.95,4.24692472]
[1738291258073,7.35671697,237.0,236.95,0.02692472]
[1738291258268,7.35671388,236.98,236.95,0.02692472]
[1738291260872,7.35671388,236.96,236.87,7.35671388]
[1738291261189,7.35671388,236.95,236.89,4.221]
[1738291261969,7.35671388,236.95,236.9,0.0321089]
[1738291262170,0.03162803,236.94,236.9,0.0321089]
[1738291266077,0.03162803,236.94,236.92,4.2205]
[1738291266273,0.03162803,236.94,236.9,0.0321089]
[1738291266477,0.03162803,236.94,236.91,7.35671388]
[1738291267385,0.03162803,236.94,236.93,4.2204]
[1738291267580,0.03162803,236.94,236.93,11.57711388]
[1738291268682,0.03162803,236.94,236.93,4.2204]
[1738291269681,0.03162803,236.94,236.92,4.2206]
[1738291271376,0.03162803,236.94,236.9,0.0321089]
[1738291271577,0.03162803,236.94,236.93,11.57711388]
[1738291273681,2.803e-05,236.94,236.93,11.57711388]
[1738291275689,2.803e-05,236.94,236.93,4.2204]
[1738291282191,2.803e-05,236.94,236.93,11.57711388]
[1738291284697,2.803e-05,236.94,236.93,4.2204]
[1738291286899,2.803e-05,236.94,236.91,4.2206]
[1738291289199,7.35671388,236.93,236.9,0.0321089]
[1738291289900,7.35671388,236.91,236.86,4.2216]
[1738291291101,7.35671388,236.91,236.86,4.25198909]
[1738291292401,7.35671388,236.91,236.87,4.2214]
[1738291292601,1.4223,236.92,236.86,0.03038909]
[1738291293006,1.4223,236.92,236.87,4.2213]
[1738291293303,1.4223,236.92,236.86,0.03038909]
[1738291293504,7.35671388,236.91,236.86,0.03038909]
[1738291294002,7.35671388,236.91,236.86,4.25198909]
[1738291294803,11.57751388,236.91,236.86,0.03038909]
[1738291295003,7.35671388,236.89,236.86,0.03038909]
[1738291296305,7.35671388,236.87,236.83,4.222]
[1738291297407,7.38551948,236.87,236.83,4.222]
[1738291302216,7.35671388,236.85,236.8,4.2225]
[1738291302416,7.35671388,236.85,236.77,7.35671388]
[1738291302611,7.38380752,236.85,236.77,7.35671388]
[1738291304416,7.38380752,236.85,236.83,4.2222]
[1738291307617,0.02709364,236.85,236.83,4.2222]
[1738291308118,0.02709364,236.85,236.79,7.35671388]
[1738291308417,0.02709364,236.85,236.84,4.222]
[1738291308608,1.4225,236.88,236.81,7.35671388]
[1738291308810,0.02748257,236.87,236.81,7.35671388]
[1738291309319,0.02748257,236.87,236.69,8.4492]
[1738291309320,0.02748257,236.87,236.86,4.2216]
[1738291309509,1.4223,236.92,236.85,7.35671388]
[1738291309715,0.028049,236.89,236.85,7.35671388]
[1738291310521,0.028049,236.89,236.88,4.2213]
[1738291312825,0.028049,236.89,236.87,4.2214]
[1738291313019,1.4223,236.92,236.87,4.2214]
[1738291313319,0.03044433,236.9,236.87,4.2214]
[1738291313521,7.35671388,236.89,236.85,4.2217]
[1738291314022,7.38826549,236.89,236.85,4.2217]
[1738291315025,7.35671388,236.87,236.82,4.2224]
[1738291315424,7.35671388,236.85,236.77,7.35671388]
[1738291315926,0.03217471,236.83,236.77,7.35671388]
[1738291318326,0.03217471,236.83,236.82,4.2224]
[1738291318628,0.03217471,236.83,236.77,7.35671388]
[1738291319026,0.03217471,236.83,236.8,4.2226]
[1738291319518,7.35671388,236.81,236.71,7.35671388]
[1738291319724,7.35671388,236.76,236.7,150.62431941]
[1738291320022,7.35671388,236.76,236.7,141.02616709]
[1738291320221,0.0316684,236.75,236.7,141.02616709]
[1738291320823,0.0316684,236.75,236.7,145.25046709]
[1738291321819,7.35671388,236.74,236.7,145.25046709]
[1738291322023,7.35671388,236.74,236.7,141.02616709]
[1738291322319,7.35671388,236.74,236.68,4.2247]
[1738291322521,7.35671388,236.74,236.67,58.53839222]
[1738291323328,7.35671388,236.74,236.69,4.2246]
[1738291323628,7.35671388,236.74,236.67,58.53839222]
[1738291325127,7.35671388,236.74,236.7,4.2245]
[1738291326324,0.0316684,236.75,236.67,58.53839222]
[1738291326530,0.0316684,236.75,236.73,4.2239]
[1738291326926,0.0316684,236.75,236.7,4.2243]
[1738291327126,0.0316684,236.75,236.67,58.53839222]
[1738291327621,7.35671388,236.74,236.7,4.2243]
[1738291327827,7.35671388,236.74,236.67,58.53839222]
[1738291328329,7.35671388,236.74,236.72,4.2241]
[1738291328626,7.35671388,236.74,236.67,58.53839222]
[1738291328627,0.0316684,236.75,236.67,58.53839222]
[1738291329528,0.0316684,236.75,236.7,4.2244]
[1738291330433,0.0316684,236.75,236.67,58.53839222]
[1738291330731,0.0316684,236.75,236.71,4.2242]
[1738291330932,0.0316684,236.75,236.67,58.53839222]
[1738291332133,0.0316684,236.75,236.71,7.35671388]
[1738291332330,0.0316684,236.75,236.73,7.35671388]
[1738291332830,0.0316684,236.75,236.71,7.35671388]
[1738291333026,0.0316684,236.75,236.69,7.35671388]
[1738291333229,0.0316684,236.75,236.67,58.53839222]
[1738291333429,0.0316684,236.75,236.72,4.224]
[1738291333634,0.0316684,236.75,236.67,58.53839222]
[1738291335031,7.35671388,236.74,236.67,51.18167834]
[1738291335434,7.35671388,236.72,236.67,51.18167834]
[1738291335934,7.35671388,236.72,236.63,7.35671388]
[1738291336336,0.0279806,236.7,236.68,4.2248]
[1738291336535,0.0279806,236.7,236.63,7.35671388]
[1738291337034,206.86374332,237.04,236.63,12.64]
[1738291337334,3.111e-05,237.03,237.02,7.35671388]
[1738291337535,10.40594332,237.04,237.02,7.35671388]
[1738291337833,38.42038138,237.05,237.02,7.35671388]
[1738291338537,41.39563251,237.08,237.04,7.35671388]
[1738291338727,24.20438113,237.08,237.07,7.35671388]
[1738291338927,8.113e-05,237.08,237.07,11.1376217]
[1738291339234,22.3444147,237.13,237.07,11.1376217]
[1738291339431,1.3787,237.25,237.09,7.35671388]
[1738291339633,1.3787,237.25,237.18,7.35671388]
[1738291339832,1.3787,237.25,237.19,3.78090782]
[1738291340031,0.03130806,237.24,237.2,3.78090782]
[1738291340227,0.03130806,237.24,237.21,3.7718219]
[1738291340430,0.03130806,237.24,237.19,0.02918207]
[1738291345736,1.357,237.28,237.19,0.02918207]
[1738291345937,4.2144,237.27,237.19,0.02918207]
[1738291346537,4.2146,237.26,237.19,0.02918207]
[1738291346739,1.357,237.28,237.19,0.02918207]
[1738291346937,0.03218601,237.25,237.19,0.02918207]
[1738291347132,4.24698601,237.25,237.19,0.02918207]
[1738291348138,0.03218601,237.25,237.19,0.02918207]
[1738291348437,4.2149,237.24,237.19,0.02918207]
[1738291349033,4.2151,237.23,237.19,0.02918207]
[1738291349336,4.2151,237.23,237.2,21.11643511]
[1738291349537,2.86,237.36,237.2,21.11643511]
[1738291349836,11.51385816,237.31,237.2,21.11643511]
[1738291350037,11.51385816,237.31,237.21,21.11643511]
[1738291350240,4.2146,237.26,237.21,21.11643511]
[1738291350629,4.2146,237.26,237.16,141.02616709]
[1738291350828,4.24678184,237.26,237.21,0.03208451]
[1738291351932,0.03218184,237.26,237.21,0.03208451]
[1738291352137,4.2147,237.25,237.21,0.03208451]
[1738291353238,4.24437417,237.25,237.21,0.03208451]
[1738291353937,4.2149,237.24,237.21,0.03208451]
[1738291354133,11.51385816,237.31,237.21,0.03208451]
[1738291354639,4.2142,237.28,237.21,0.03208451]
[1738291354836,1.4486,237.3,237.21,0.03208451]
[1738291355541,0.03048118,237.28,237.21,0.03208451]
[1738291355739,4.2147,237.25,237.21,0.03208451]
[1738291357942,4.2145,237.27,237.21,0.03208451]
[1738291358340,0.03048118,237.28,237.21,0.03208451]
[1738291358341,11.51385816,237.33,237.21,0.03208451]
[1738291358842,4.2144,237.27,237.21,0.03208451]
[1738291359042,11.51385816,237.33,237.21,0.03208451]
[1738291359537,0.02771839,237.29,237.21,0.03208451]
[1738291360238,4.24181839,237.29,237.21,0.03208451]
[1738291360539,0.02771839,237.29,237.21,0.03208451]
[1738291361943,11.51385816,237.33,237.21,0.03208451]
[1738291363037,0.02943692,237.29,237.21,0.03208451]
[1738291363344,4.2145,237.26,237.19,145.24186709]
[1738291363643,4.2145,237.26,237.23,0.03086071]
[1738291364440,4.2147,237.25,237.23,0.03086071]
[1738291364844,11.51385816,237.29,237.23,0.03086071]
[1738291365039,11.51385816,237.3,237.23,0.03086071]
[1738291365344,4.2148,237.25,237.23,0.03086071]
[1738291366043,0.02700421,237.26,237.23,0.03086071]
[1738291367244,4.2148,237.25,237.23,0.03086071]
[1738291367639,4.2149,237.24,237.23,0.03086071]
[1738291367949,0.02700421,237.26,237.15,141.02616709]
[1738291368247,4.2157,237.2,237.14,4.2165]
[1738291369249,0.0278201,237.19,237.15,0.03226172]
[1738291370745,4.2436201,237.19,237.15,0.03226172]
[1738291371842,4.216,237.18,237.15,0.03226172]
[1738291372850,0.0278201,237.19,237.15,0.03226172]
[1738291375251,4.216,237.18,237.15,0.03226172]
[1738291375752,0.0278201,237.19,237.15,0.03226172]
[1738291376947,0.0278201,237.19,237.15,4.24876172]
[1738291377451,0.0278201,237.19,237.15,0.03226172]
[1738291377652,4.2436201,237.19,237.15,0.03226172]
[1738291378053,4.21800633,237.19,237.15,0.03226172]
[1738291378956,4.2161,237.17,237.15,0.03226172]
[1738291379555,4.21810633,237.19,237.15,0.03226172]
[1738291379951,0.00220633,237.19,237.15,0.03226172]
[1738291380352,4.2162,237.17,237.15,0.03226172]
[1738291380552,7.37290219,237.18,237.15,0.03226172]
[1738291381258,4.2163,237.16,237.15,0.03226172]
[1738291381658,11.58920219,237.16,237.15,0.03226172]
[1738291381861,4.217,237.12,237.08,7.37290219]
[1738291382655,4.2168,237.14,237.07,4.2179]
[1738291382859,11.52452612,237.19,237.07,4.2179]
[1738291383064,0.02910659,237.13,237.08,0.02817993]
[1738291383359,4.24590659,237.13,237.08,0.02817993]
[1738291384059,4.24590659,237.13,237.08,25.66076451]
[1738291386065,0.02910659,237.13,237.08,25.66076451]
[1738291386269,0.02910659,237.13,237.1,11.52452612]
[1738291386864,0.02910659,237.13,237.11,4.217]
[1738291387065,0.02910659,237.13,237.08,25.66076451]
[1738291387365,0.02910659,237.13,237.08,29.87846451]
[1738291387766,0.02910659,237.13,237.08,176.35220116]
[1738291388171,0.02910659,237.13,237.08,172.13450116]
[1738291389168,0.02910659,237.13,237.08,25.66076451]
[1738291391170,0.02910659,237.13,237.08,29.87846451]
[1738291391874,0.02910659,237.13,237.08,25.66076451]
[1738291392075,4.24590659,237.13,237.08,25.66076451]
[1738291393377,1.3511,237.25,237.11,11.52452612]
[1738291393575,1.3511,237.25,237.15,11.52452612]
[1738291394076,5.5658,237.25,237.17,4.2159]
[1738291394271,1.3934,237.28,237.15,11.52452612]
[1738291394471,0.02768987,237.23,237.19,0.02976057]
[1738291396176,0.02768987,237.23,237.2,4.2156]
[1738291397071,0.02768987,237.23,237.21,15.73992612]
[1738291398073,0.02768987,237.23,237.21,11.52452612]
[1738291398276,0.02768987,237.23,237.21,15.73982612]
[1738291399977,2.8493,237.37,237.21,11.52452612]
[1738291400184,2.8493,237.37,237.24,11.52452612]
[1738291400680,11.52452612,237.44,237.3,11.52452612]
[1738291400879,15.74102612,237.47,237.3,11.52452612]
[1738291401076,0.02713555,237.39,237.35,0.0306779]
[1738291401681,0.02713555,237.39,237.35,4.2435779]
[1738291402380,0.02713555,237.39,237.35,0.0306779]
[1738291403584,0.02713555,237.39,237.36,15.73722612]
[1738291404786,0.02713555,237.39,237.36,11.52452612]
[1738291404986,0.02713555,237.39,237.37,4.2125]
[1738291408390,0.02713555,237.39,237.38,4.2124]
[1738291409391,0.02713555,237.39,237.36,18.63962612]
[1738291409792,0.02713555,237.39,237.35,0.0306779]
[1738291414395,4.2126,237.38,237.35,0.0306779]
[1738291419299,4.2126,237.37,237.35,0.0306779]
[1738291419598,0.02713555,237.39,237.35,0.0306779]
[1738291421196,4.2124,237.38,237.35,0.0306779]
[1738291421904,4.2126,237.37,237.35,0.0306779]
[1738291422504,0.02713555,237.39,237.35,0.0306779]
[1738291422705,4.2127,237.36,237.35,0.0306779]
[1738291435111,11.57269274,237.36,237.35,0.0306779]
[1738291435514,7.35999274,237.36,237.25,11.57449274]
[1738291435819,4.2139,237.3,237.25,11.57449274]
[1738291436719,4.24544868,237.3,237.25,11.60565103]
[1738291437013,4.2143,237.28,237.25,0.03115829]
[1738291438520,4.2143,237.27,237.25,0.03115829]
[1738291439018,4.2142,237.29,237.25,0.03115829]
[1738291440618,4.2142,237.28,237.25,0.03115829]
[1738291442519,4.2144,237.27,237.25,0.03115829]
[1738291447422,7.35999274,237.28,237.25,0.03115829]
[1738291447622,4.2145,237.26,237.25,0.03115829]
[1738291447818,11.57449274,237.26,237.25,0.03115829]
[1738291448019,7.35999274,237.26,237.17,7.35999274]
[1738291448322,7.35999274,237.24,237.15,7.35999274]
[1738291448823,4.2154,237.22,237.15,11.57629274]
[1738291449121,4.2154,237.22,237.17,7.35999274]
[1738291449318,0.02815411,237.21,237.17,7.35999274]
[1738291450223,0.02815411,237.21,237.19,7.35999274]
[1738291451327,0.02815411,237.21,237.2,4.2156]
[1738291452020,7.35999274,237.33,237.19,7.35999274]
[1738291452227,10.12999274,237.35,237.27,7.35999274]
[1738291453026,4.2131,237.34,237.27,7.35999274]
[1738291453226,0.02753884,237.33,237.29,0.02688114]
[1738291453427,0.02753884,237.33,237.29,7.38687388]
[1738291454627,0.02753884,237.33,237.31,7.35999274]
[1738291455025,0.02753884,237.33,237.29,0.02688114]
[1738291456026,0.02753884,237.33,237.29,11.60077388]
[1738291458529,0.02753884,237.33,237.29,7.38687388]
[1738291458830,0.02753884,237.33,237.3,4.2138]
[1738291460931,0.02753884,237.33,237.29,7.38687388]
[1738291461730,0.02753884,237.33,237.31,7.35999274]
[1738291462332,0.02753884,237.33,237.32,4.2135]
[1738291462532,0.02753884,237.33,237.31,7.35999274]
[1738291463133,0.02753884,237.33,237.32,4.2135]
[1738291466536,11.57169274,237.43,237.35,4.2128]
[1738291466741,8.14445811,237.42,237.35,11.57279274]
[1738291467138,8.14445811,237.41,237.36,7.92293878]
[1738291467438,8.14445811,237.4,237.37,7.92293878]
[1738291467740,15.63941903,237.39,237.36,0.02876717]
[1738291468043,15.63941903,237.38,237.36,0.02876717]
[1738291468241,15.63941903,237.37,237.36,0.02876717]
[1738291468442,25.27282939,237.37,237.36,0.02876717]
[1738291468639,36.84542213,237.37,237.36,0.02876717]
[1738291470543,4.2131,237.35,237.27,11.57429274]
[1738291470735,15.63941903,237.34,237.27,7.35999274]
[1738291470940,15.63941903,237.33,237.27,7.35999274]
[1738291471140,7.49496092,237.32,237.27,7.35999274]
[1738291471342,15.63728667,237.31,237.27,7.35999274]
[1738291471546,7.49496092,237.3,237.27,7.35999274]
[1738291471740,17.12837128,237.29,237.27,7.38673905]
[1738291472044,7.49496092,237.28,237.27,7.38673905]
[1738291473241,7.49496092,237.28,237.27,11.60103905]
[1738291474643,0.0280467,237.31,237.29,4.2139]
[1738291474844,0.0280467,237.31,237.29,11.57389274]
[1738291479353,0.0280467,237.31,237.29,7.35999274]
[1738291479556,0.0280467,237.31,237.3,4.2138]
[1738291482460,4.2118,237.42,237.29,7.35999274]
[1738291482658,4.2118,237.42,237.35,7.35999274]
[1738291483659,0.03145095,237.41,237.36,0.03015086]
[1738291486855,11.57219274,237.39,237.36,0.03015086]
[1738291487061,7.35999274,237.39,237.36,0.03015086]
[1738291488056,4.2124,237.38,237.36,0.03015086]
[1738291490060,4.2126,237.37,237.36,0.03015086]
[1738291490361,11.57259274,237.37,237.36,0.03015086]
[1738291490866,4.2133,237.34,237.27,7.35999274]
[1738291491060,4.2133,237.34,237.27,11.57429274]
[1738291491662,7.35999274,237.35,237.27,11.57429274]
[1738291491853,4.2129,237.36,237.27,11.57429274]
[1738291492161,0.02700988,237.33,237.3,4.2137]
[1738291493362,0.02700988,237.33,237.29,7.38724416]
[1738291495063,0.02700988,237.33,237.29,11.60114416]
[1738291495965,0.02700988,237.33,237.29,0.02725142]
[1738291499763,7.38700262,237.33,237.29,0.02725142]
[1738291500760,4.2136,237.32,237.29,0.02725142]
[1738291500966,7.38700262,237.33,237.29,0.02725142]
[1738291502165,4.2137,237.31,237.29,0.02725142]
[1738291503068,0.02700988,237.33,237.29,0.02725142]
[1738291503268,0.02700988,237.33,237.29,7.38724416]
[1738291504069,0.02700988,237.33,237.3,4.2138]
[1738291504465,0.02700988,237.33,237.31,7.35999274]
[1738291505072,0.02700988,237.33,237.31,11.57359274]
[1738291506365,0.02700988,237.33,237.32,4.2135]
[1738291507975,0.02700988,237.33,237.31,7.35999274]
[1738291508173,0.02700988,237.33,237.29,7.38724416]
[1738291509773,0.02700988,237.33,237.29,0.02725142]
[1738291511078,4.24030988,237.33,237.29,0.02725142]
[1738291511975,0.02700988,237.33,237.29,0.02725142]
[1738291512579,0.02700988,237.33,237.29,7.38724416]
[1738291513177,0.02700988,237.33,237.29,11.60104416]
[1738291514679,0.02700988,237.33,237.3,4.2138]
[1738291516072,0.02700988,237.33,237.29,11.60124416]
[1738291517176,0.02700988,237.33,237.29,7.38724416]
[1738291517375,0.02700988,237.33,237.3,4.2137]
[1738291517582,0.02700988,237.33,237.29,7.38724416]
[1738291518372,0.02700988,237.33,237.29,11.60104416]
[1738291519380,4.2135,237.32,237.29,0.02725142]
[1738291519580,7.38700262,237.33,237.29,0.02725142]
[1738291519972,4.2138,237.3,237.29,0.02725142]
[1738291521981,7.35999274,237.31,237.19,153.83372939]
[1738291522181,4.2148,237.25,237.19,153.83372939]
[1738291522482,7.35999274,237.25,237.19,146.47373665]
[1738291522983,4.215,237.24,237.19,146.47373665]
[1738291523183,0.02697637,237.24,237.2,0.02859488]
[1738291524987,4.24187637,237.24,237.2,0.02859488]
[1738291527283,4.2154,237.21,237.2,0.02859488]
[1738291527481,7.35999274,237.22,237.09,7.35999274]
[1738291527681,7.35999274,237.15,237.08,322.24222063]
[1738291527886,7.35999274,237.17,237.09,7.35999274]
[1738291528688,0.03208329,237.15,237.11,0.02682252]
[1738291529694,0.03208329,237.15,237.11,4.24392252]
[1738291530786,0.03208329,237.15,237.14,4.2167]
[1738291531192,7.35999274,237.28,237.2,7.35999274]
[1738291531391,4.2144,237.27,237.21,4.2154]
[1738291532293,0.03031574,237.26,237.22,0.02823921]
[1738291533492,0.03031574,237.26,237.24,4.2148]
[1738291533692,0.03031574,237.26,237.22,0.02823921]
[1738291534900,0.03031574,237.26,237.22,4.24333921]
[1738291535093,0.03031574,237.26,237.22,0.02823921]
[1738291536297,0.03031574,237.26,237.23,4.2149]
[1738291536592,94.9314988,237.35,237.23,4.2149]
[1738291536593,4.2091,237.57,237.46,4.2109]
[1738291536797,11.5114988,237.63,237.46,11.5114988]
[1738291537292,4.2083,237.62,237.46,11.5114988]
[1738291537793,0.02955075,237.56,237.52,0.03066912]
[1738291539200,0.02955075,237.56,237.53,3.22701774]
[1738291539700,0.02955075,237.56,237.54,3.22701774]
[1738291540301,0.02955075,237.56,237.55,3.22701774]
[1738291543701,0.02955075,237.56,237.52,0.03066912]
[1738291544104,0.02955075,237.56,237.53,3.21180528]
[1738291544600,0.02955075,237.56,237.54,3.21180528]
[1738291545002,0.02955075,237.56,237.52,0.03066912]
[1738291545602,0.02955075,237.56,237.53,3.20790479]
[1738291546104,0.02955075,237.56,237.54,3.20790479]
[1738291546507,0.02955075,237.56,237.53,3.20790479]
[1738291547307,0.02955075,237.56,237.52,0.03066912]
[1738291548106,4.2096,237.54,237.52,0.03066912]
[1738291548406,0.02955075,237.56,237.52,0.03066912]
[1738291548602,0.02955075,237.56,237.54,11.5114988]
[1738291548806,4.3542,237.7,237.54,11.5114988]
[1738291549011,4.3542,237.7,237.58,11.5114988]
[1738291549913,4.2078,237.64,237.58,11.5114988]
[1738291550106,0.03069404,237.66,237.62,0.02902309]
[1738291550912,4.2078,237.64,237.62,0.02902309]